Cogmind - Beta 9.6 @@@ ROGUE MODE // 2020.05.02 @ 18:40:35 // Winter2019/RPGLIKE Player: PhenomPhear Result: Destroyed by Y-54 Guardian with Gatling Laser Performance ------------- Evolutions (3) 1500 Regions Visited (6) 1200 Robots Destroyed (27) 135 Value Destroyed (625) 625 Prototype IDs (7) 140 Alien Tech Used (0) 0 Bonus (0) 0 TOTAL SCORE: 3600 Bonus ------- None Cogmind --------- Core Integrity 0/600 Matter 290/300 Energy 140/140 System Corruption 0% Temperature Cool (12) Movement Flying (34) Location -7/Factory Parts ------- > --- POWER (1) -------- Light Deuterium Engine > --- PROPULSION (2) --- Flight Unit Improved Flight Unit > --- UTILITY (3) ------ Experimental Sensor Array Improved Terrain Scanner > --- WEAPON (2) ------- Mini Grenade Launcher Axe > --- INVENTORY (0) ---- (None) Peak State ------------ > --- POWER ------------ Light Deuterium Engine > --- PROPULSION ------- Flight Unit Improved Flight Unit > --- UTILITY ---------- Experimental Sensor Array Improved Terrain Scanner > --- WEAPON ----------- Mini Grenade Launcher Axe > --- INVENTORY -------- (None) [Rating: 20] Favorites ----------- Power Ion Engine Engine Ion Engine Propulsion Flight Unit Wheel Compact Wheel Flight Unit Flight Unit Utility Improved Terrain Scanner Device Improved Terrain Scanner Weapon Light Assault Rifle Ballistic Gun Light Assault Rifle Launcher Grenade Launcher Slashing Weapon Axe Build | -11 -10 -10 -10 -9 -8 -7 ------- Run | Scr Mat Min Exi Min Mat Fac Slots Evolved 4 | 2 . 1 . . 1 . Power . | . . . . . . . Propulsion 1 | 1 . . . . . . Utility 2 | . . 1 . . 1 . Weapon 1 | 1 . . . . . . Parts Attached 16 | 6 5 1 . . 4 . Power 2 | 1 . . . . 1 . Engine 2 | 1 . . . . 1 . Core . | . . . . . . . Reactor . | . . . . . . . Propulsion 5 | 2 2 . . . 1 . Treads . | . . . . . . . Leg . | . . . . . . . Wheel 2 | 2 . . . . . . Hover . | . . . . . . . Flight 3 | . 2 . . . 1 . Utility 2 | 1 . 1 . . . . Device 2 | 1 . 1 . . . . Storage . | . . . . . . . Processor . | . . . . . . . Hackware . | . . . . . . . Protection . | . . . . . . . Artifact . | . . . . . . . Weapon 7 | 2 3 . . . 2 . Energy Gun . | . . . . . . . Energy Cannon . | . . . . . . . Ballistic Gun 4 | 2 2 . . . . . Ballistic Cannon . | . . . . . . . Launcher 2 | . 1 . . . 1 . Special Weapon . | . . . . . . . Impact Weapon . | . . . . . . . Slashing Weapon 1 | . . . . . 1 . Piercing Weapon . | . . . . . . . Special Melee Weapon . | . . . . . . . Unidentified Prototypes 2 | . . 1 . . 1 . Parts Lost . | . . . . . . . Power . | . . . . . . . Propulsion . | . . . . . . . Utility . | . . . . . . . Weapon . | . . . . . . . Highest Loss Streak . | . . . . . . . Average Slot Usage (%) 96 | . 99 100 100 100 86 87 Engine 14 | . 16 14 14 14 11 12 Wheel 9 | . 27 . . . . . Flight 19 | . 5 29 28 28 25 25 Device 22 | . 16 24 28 28 25 25 Ballistic Gun 17 | . 30 14 14 14 6 . Launcher 9 | . 1 14 14 14 12 12 Slashing Weapon 1 | . . . . . 5 12 Naked Turns . | . . . . . . . Heaviest Build 11 | 9 10 11 11 11 11 11 Greatest Support 26 | 26 26 13 13 13 15 15 Greatest Overweight (x) 1 | . 1 1 . . . . Average Overweight (x) . | . . . . . . . Largest Inventory Capacity . | . . . . . . . Average Capacity . | . . . . . . . Most Carried . | . . . . . . . Average Carried . | . . . . . . . Final Capacity . | . . . . . . . Final Carried . | . . . . . . . Class Distribution -------------------- 53% | Hacker-Scout 46% | Hacker-Mutant Dominant Class ---------------- Hacker-Mutant | -10/Materials Hacker-Scout | -10/Mines Hacker-Scout | -10/Exiles Hacker-Scout | -9/Mines Hacker-Scout | -8/Materials Hacker-Scout | -7/Factory Resources | -11 -10 -10 -10 -9 -8 -7 ----------- Run | Scr Mat Min Exi Min Mat Fac Matter Collected 648 | 316 142 33 . 56 20 81 Remotely . | . . . . . . . Salvage Created 642 | 98 350 13 . 36 20 125 Parts 65 | 8 24 9 . 1 8 15 Haulers Intercepted 1 | . . . . . . 1 Recyclers Shooed 1 | 1 . . . . . . Parts Field Recycled . | . . . . . . . Retrieved Matter . | . . . . . . . Parts Self-Destructed . | . . . . . . . Prevented . | . . . . . . . Kills | -11 -10 -10 -10 -9 -8 -7 ------- Run | Scr Mat Min Exi Min Mat Fac Combat Hostiles Destroyed 17 | . 8 3 . 2 2 2 Melee 3 | . . . . . 1 2 Guns 8 | . 8 . . . . . AOE 6 | . . 3 . 2 1 . Classes Destroyed 11 | 2 5 . . 1 . 3 Worker 2 | . 1 . . . . 1 Tunneler 3 | 2 . 1 . . . . Hauler 1 | . . . . . . 1 Recycler 1 | 1 . . . . . . Operator 2 | . 1 . . . 1 . Watcher 1 | . 1 . . . . . Swarmer 6 | . 3 3 . . . . Grunt 8 | . 5 . . 1 2 . Duelist 1 | . . . . 1 . . Hunter 1 | . . . . . . 1 Programmer 1 | . . . . . . 1 Best Kill Streak 4 | 2 3 4 . 2 3 3 Combat Bots Only 3 | . 3 3 . 2 2 2 Max Kills in Single Turn 2 | 1 1 2 . 1 1 1 Gunslinging . | . . . . . . . Exploded 1 | . . 1 . 1 1 . Melee 1 | . . . . . 1 1 Uniques/NPCs Destroyed . | . . . . . . . Combat | -11 -10 -10 -10 -9 -8 -7 -------- Run | Scr Mat Min Exi Min Mat Fac Damage Taken 994 | . 324 36 . . 442 192 Core 844 | . 257 30 . . 390 167 Absorbed by Shields . | . . . . . . . Redirected to Core 520 | . 219 22 . . 192 87 Core Remaining (%) 61 | 100 . . . 75 10 . Volleys Fired 58 | 14 32 4 . 6 1 1 Largest 2 | 2 2 1 . 1 1 1 Hottest 40 | 40 40 30 . 30 30 30 Shots Fired 102 | 28 62 4 . 6 1 1 Gun 90 | 28 62 . . . . . Cannon . | . . . . . . . Launcher 12 | . . 4 . 6 1 1 Special . | . . . . . . . Kinetic 90 | 28 62 . . . . . Thermal . | . . . . . . . Explosive 12 | . . 4 . 6 1 1 Electromagnetic . | . . . . . . . Robot Hit Streak 14 | 6 14 1 . 1 2 . Robot Miss Streak 4 | 4 2 1 . 1 . 1 Penetration Max . | . . . . . . . Secondary Targets . | . . . . . . . Shots Hit Robots 75 | 17 45 1 . 1 4 7 Core Hits 49 | 6 22 8 . 5 3 5 Critical Hits . | . . . . . . . Critical Kills . | . . . . . . . Critical Parts Destroyed . | . . . . . . . Melee Attacks 13 | . . . . . 5 8 Impact . | . . . . . . . Slashing 13 | . . . . . 5 8 Piercing . | . . . . . . . Sneak Attacks 3 | . . . . . 1 2 Combat Hostiles . | . . . . . . . Follow-up Attacks . | . . . . . . . Damage Inflicted 1977 | 186 415 325 . 250 356 445 Guns 601 | 186 415 . . . . . Cannons . | . . . . . . . Explosions 719 | . . 325 . 250 137 7 Melee 657 | . . . . . 219 438 Ramming . | . . . . . . . Kinetic 601 | 186 415 . . . . . Thermal 75 | . . 75 . . . . Explosive 644 | . . 250 . 250 137 7 Electromagnetic . | . . . . . . . Impact . | . . . . . . . Slashing 657 | . . . . . 219 438 Piercing . | . . . . . . . Highest Corruption . | . . . . . . . Average Corruption . | . . . . . . . Corruption Purged . | . . . . . . . Overload Shots . | . . . . . . . Overflow Damage 32 | . . 7 . . . 25 Projectiles . | . . . . . . . Explosions 7 | . . 7 . . . . Melee 25 | . . . . . . 25 Knockbacks . | . . . . . . . Impact . | . . . . . . . Kinetic . | . . . . . . . Secondary . | . . . . . . . Self-Inflicted Damage 46 | . . . . . 46 . Shots 1 | . . . . . 1 . Rammed . | . . . . . . . Targets Rammed . | . . . . . . . Kicked . | . . . . . . . Crushed . | . . . . . . . Highest Temperature 12 | . 12 . . 1 12 7 Average Temperature 6 | . 7 . . 1 4 7 Received Heat Transfer 375 | . 138 . . . 207 30 Siege Activations . | . . . . . . . Robots Corrupted . | . . . . . . . Combat Hostiles . | . . . . . . . Parts Fried . | . . . . . . . Impact Corruptions . | . . . . . . . Robots Melted . | . . . . . . . Combat Hostiles . | . . . . . . . Parts Melted . | . . . . . . . Heat Transferred 150 | . . 150 . . . . Parts Sabotaged . | . . . . . . . Parts Stolen . | . . . . . . . Parts Stripped . | . . . . . . . Power Chain Reactions . | . . . . . . . Missiles Intercepted . | . . . . . . . Alert | -11 -10 -10 -10 -9 -8 -7 ------- Run | Scr Mat Min Exi Min Mat Fac Peak Influence 336 | 15 336 144 . 50 211 218 Average Influence 102 | 5 159 68 . 41 98 138 Maximum Alert Level 1 | . 1 . . . 1 1 Low Security (%) 82 | 100 55 100 . 100 96 93 Level 1 17 | . 44 . . . 3 6 Level 2 . | . . . . . . . Level 3 . | . . . . . . . Level 4 . | . . . . . . . Level 5 . | . . . . . . . High Security . | . . . . . . . Max Security . | . . . . . . . Squads Dispatched 5 | . 3 . . . 1 1 Investigation 1 | . 1 . . . . . Extermination . | . . . . . . . Reinforcement 4 | . 2 . . . 1 1 Assault . | . . . . . . . Garrison . | . . . . . . . Intercept . | . . . . . . . Construction Impeded . | . . . . . . . Haulers Reinforced 1 | . . . . . . 1 Stealth | -11 -10 -10 -10 -9 -8 -7 --------- Run | Scr Mat Min Exi Min Mat Fac Distress Signals 6 | . 4 . . . 2 . Communications Jammed . | . . . . . . . Distress Signals . | . . . . . . . Times Spotted 40 | . 20 2 . 2 12 4 Peak Tracking Total 8 | . 5 2 . 2 8 2 Tactical Retreats 5 | . 3 . . . 2 . Traps | -11 -10 -10 -10 -9 -8 -7 ------- Run | Scr Mat Min Exi Min Mat Fac Traps Triggered 3 | . 1 . . . . 2 Indirectly . | . . . . . . . Trap Hack Attempts . | . . . . . . . Triggered . | . . . . . . . Disarmed . | . . . . . . . Reprogrammed . | . . . . . . . Reused . | . . . . . . . Traps Extracted . | . . . . . . . Installed . | . . . . . . . Triggered . | . . . . . . . Machines | -11 -10 -10 -10 -9 -8 -7 ---------- Run | Scr Mat Min Exi Min Mat Fac Machines Disabled 1 | . . 1 . . . . Max in Single Turn 1 | . . 1 . . . . Machines Sabotaged . | . . . . . . . Garrisons Compromised . | . . . . . . . Overloaded Fab Kills . | . . . . . . . Fab Network Shutdowns . | . . . . . . . Hacking | -11 -10 -10 -10 -9 -8 -7 --------- Run | Scr Mat Min Exi Min Mat Fac Machines Accessed 7 | . 2 . . . 4 1 Terminals 7 | . 2 . . . 4 1 Fabricators . | . . . . . . . Repair Stations . | . . . . . . . Recycling Units . | . . . . . . . Scanalyzers . | . . . . . . . Garrison Access . | . . . . . . . Total Hacks 34 | . 7 . . . 25 2 Successful 12 | . 4 . . . 7 1 Failed 22 | . 3 . . . 18 1 Catastrophic 1 | . . . . . 1 . Database Lockouts . | . . . . . . . Manual 21 | . 5 . . . 16 . Terminals 34 | . 7 . . . 25 2 Fabricators . | . . . . . . . Repair Stations . | . . . . . . . Recycling Units . | . . . . . . . Scanalyzers . | . . . . . . . Garrison Access . | . . . . . . . Terminal Hacks 12 | . 4 . . . 7 1 Prototype ID Bank 4 | . 4 . . . . . Level Access Points 1 | . . . . . 1 . Branch Access Points 1 | . . . . . 1 . Terminal Index 2 | . . . . . 1 1 Garrison Index 1 | . . . . . 1 . Locate Traps 1 | . . . . . 1 . Registered Prototypes 1 | . . . . . 1 . Zone Layout 1 | . . . . . 1 . Fabricator Hacks . | . . . . . . . Repair Station Hacks . | . . . . . . . Recycling Unit Hacks . | . . . . . . . Scanalyzer . | . . . . . . . Garrison Access Hacks . | . . . . . . . Unauthorized Hacks . | . . . . . . . Terminals . | . . . . . . . Fabricators . | . . . . . . . Repair Stations . | . . . . . . . Recycling Units . | . . . . . . . Scanalyzers . | . . . . . . . Garrison Access . | . . . . . . . Data Cores Recovered 1 | . . . . . 1 . Used . | . . . . . . . Hacking Detections 7 | . 2 . . . 4 1 Full Trace Events . | . . . . . . . Feedback Events . | . . . . . . . Feedback Blocked . | . . . . . . . Robot Schematics Acquired . | . . . . . . . Robots Built . | . . . . . . . Matter . | . . . . . . . Time . | . . . . . . . Total Robot Build Rating . | . . . . . . . Part Schematics Acquired . | . . . . . . . Parts Built . | . . . . . . . Matter . | . . . . . . . Time . | . . . . . . . Total Part Build Rating . | . . . . . . . Parts Repaired . | . . . . . . . Time . | . . . . . . . Parts Recycled . | . . . . . . . Recycled Matter . | . . . . . . . Retrieved Matter . | . . . . . . . Retrieved Components . | . . . . . . . Parts Scanalyzed . | . . . . . . . Part Schematics Acquired . | . . . . . . . Parts Damaged . | . . . . . . . Bothacking | -11 -10 -10 -10 -9 -8 -7 ------------ Run | Scr Mat Min Exi Min Mat Fac Used RIF Installer . | . . . . . . . Robots Hacked . | . . . . . . . Non-combat . | . . . . . . . Combat . | . . . . . . . Robot Hacks Applied . | . . . . . . . Relay Couplers Released . | . . . . . . . Robots Rewired . | . . . . . . . Allies Hacked . | . . . . . . . Hacks Repelled . | . . . . . . . Allies | -11 -10 -10 -10 -9 -8 -7 -------- Run | Scr Mat Min Exi Min Mat Fac Total Allies 1 | . . 1 . . . . Largest Group 1 | . . 1 . . . . Highest-Rated Group 31 | . . 31 . . . . Highest-Rated Ally 31 | . . 31 . . . . Total Orders . | . . . . . . . Ally Attacks . | . . . . . . . Total Damage . | . . . . . . . Kills . | . . . . . . . Allies Corrupted . | . . . . . . . Allies Melted . | . . . . . . . Intel | -11 -10 -10 -10 -9 -8 -7 ------- Run | Scr Mat Min Exi Min Mat Fac Robot Analysis Total . | . . . . . . . Derelict Logs Recovered 4 | . . 2 . 2 . . Drone Launches . | . . . . . . . Drone Recoveries . | . . . . . . . Exploration | -11 -10 -10 -10 -9 -8 -7 ------------- Run | Scr Mat Min Exi Min Mat Fac Turns Passed 1226 | 112 404 177 123 157 130 123 Spaces Moved 2039 | 74 350 341 332 373 300 269 Core 9 | 9 . . . . . . Treads . | . . . . . . . Legs . | . . . . . . . Wheels 311 | 65 246 . . . . . Hover . | . . . . . . . Flight 1719 | . 104 341 332 373 300 269 Fastest Speed 34 | 50 37 37 37 37 34 34 Average Speed 47 | 84 80 48 37 37 34 34 Slowest Speed 117 | 90 117 117 37 37 37 34 Overloaded Moves . | . . . . . . . Propulsion Burnouts . | . . . . . . . Robots Hopped 9 | . 1 1 . 2 4 1 Cave-ins Triggered . | . . . . . . . Exploration Rate (%) 51 | 5 67 75 82 74 45 11 Regions Visited 6 Branch Regions 3 Pre-discovered Areas 4 | . . 2 . 2 . . Known Exits Taken 1 | . . . . . 1 . Unknown Exits Taken 5 | 1 1 1 1 1 . . Scrap Searched 2 | . . 1 . 1 . . Spaces Dug 18 | . . 8 . 8 1 1 Terrain Destroyed 67 | . . 26 . 22 13 6 Melee 2 | . . . . . 1 1 Projectile . | . . . . . . . AOE 65 | . . 26 . 22 12 5 Actions | -11 -10 -10 -10 -9 -8 -7 --------- Run | Scr Mat Min Exi Min Mat Fac Total 2166 | 95 417 344 331 383 312 284 Wait 34 | 2 20 . . 7 3 2 Move 2016 | 73 347 338 331 368 292 267 Hop 8 | . 1 1 . 2 3 1 Pick Up . | . . . . . . . Fast Attach 16 | 6 5 1 . . 4 . Attach . | . . . . . . . Detach . | . . . . . . . Swap . | . . . . . . . Drop 9 | . 5 . . . 4 . Fire 58 | 14 32 4 . 6 1 1 Melee 13 | . . . . . 5 8 Ram . | . . . . . . . Kick . | . . . . . . . Crush . | . . . . . . . Escape Stasis . | . . . . . . . Rewire . | . . . . . . . Trap . | . . . . . . . Miscellaneous 12 | . 7 . . . . 5 Route ------- -11/Scrapyard -10/Materials (discovered 2 exits: [*Mat] / [*Min]) -10/Mines (discovered 3 exits: [*Mat x2] / [*Exi]) -10/Exiles -9/Mines -8/Materials (discovered 3 exits: *Fac x3) -7/Factory (discovered 1 exit: [*Fac]) History --------- Turn | Location | Event 1 | -11/Scrapyard | Upgraded with Propulsion slot (x1) 1 | -11/Scrapyard | Upgraded with Weapon slot (x1) 3 | -11/Scrapyard | Discovered new exit (range 15) 113 | -11/Scrapyard | Entered Materials 315 | -10/Materials | Build established: Hacker-Mutant 461 | -10/Materials | Discovered new exit (range 15) 481 | -10/Materials | Discovered new exit (range 15) 517 | -10/Materials | Entered Mines 519 | -10/Mines | Reached level 2 519 | -10/Mines | Discovered new exit (range 8) 520 | -10/Mines | Received a Mining Laser from a helpful Derelict 540 | -10/Mines | Discovered new exit (range 9) 556 | -10/Mines | Found a damaged Exp. Sensor Array with a note attached 577 | -10/Mines | Upgraded with Utility slot (x1) 577 | -10/Mines | Found Prototype Device 577 | -10/Mines | Identified Exp. Sensor Array 633 | -10/Mines | Learned location of Storage (-9) 651 | -10/Mines | Learned location of Mines (-9) 692 | -10/Mines | Deemed a non-threat by the Exiles lab entrance 692 | -10/Mines | Discovered new exit (range 5) 694 | -10/Mines | Entered Exiles 704 | -10/Exiles | Met 8R-AWN 710 | -10/Exiles | Met EX-HEX 720 | -10/Exiles | Met EX-BIN 740 | -10/Exiles | Met EX-DEC 754 | -10/Exiles | Visited The Gauntlet 814 | -10/Exiles | Discovered new exit (range 10) 817 | -10/Exiles | Entered Mines 863 | -9/Mines | Received a Rocket Launcher from a helpful Derelict 883 | -9/Mines | Build established: Hacker-Scout 956 | -9/Mines | Learned Materials emergency access door positions 965 | -9/Mines | Discovered new exit (range 7) 974 | -9/Mines | Entered Materials 976 | -8/Materials | Reached level 3 976 | -8/Materials | Upgraded with Utility slot (x1) 1017 | -8/Materials | Discovered new exit (range 16) 1049 | -8/Materials | Reached level 4 1050 | -8/Materials | Core integrity fell below 50% 1061 | -8/Materials | Core integrity fell below 20% 1069 | -8/Materials | Identified exit to Factory 1104 | -8/Materials | Entered Factory 1105 | -7/Factory | Core integrity fell below 50% 1105 | -7/Factory | Core integrity fell below 20% 1106 | -7/Factory | Reached level 5 1219 | -7/Factory | Discovered new exit (range 12) 1227 | -7/Factory | Destroyed by Y-54 Guardian with Gatling Laser Last Messages --------------- Downloaded coordinate data. 01164_ R-06 Scavenger inserts Prototype Hover Unit into recycling unit. 01166_ P-60 Hacker destroyed. 01167_ R-06 Scavenger inserts Prototype Hover Unit into recycling unit. 01173_ Used Protomatter to restore core integrity (+99, depleted) 01184_ Slug penetrates Wall. 01185_ H-55 Commando destroyed. 01185_ R-06 Scavenger collects Shock Rifle. 01188_ Acquired 33 matter. 01188_ R-06 Scavenger collects Gravmag System. 01191_ Sneak attack on K-01 Serf. 01191_ K-01 Serf destroyed. 01192_ R-06 Scavenger collects Remote Datajack. 01219_ EXIT=FOUND 01219_ Triggered Heavy Explosive Trap. 01219_ An explosion rips through the floor. 01219_ Terminal disabled. 01220_ Triggered Heavy Explosive Trap. 01220_ An explosion rips through the floor. 01224_ U-05 Engineer lays Concrete. Map ----- +----------------------------------------------------+ | ?????????????????????????????????????????????????? | | ?????????????????????????????????????????????????? | | ?????????????????????????????????????????????????? | | ????????????????????????????????????????????????? | | ????????????????????????????????????????????????? | | ????????????????????????????????????????????????? | | ????????????????????????????????????????????????? | | ????????????????????????????????????????????????? | | ?????????????????????????????????????????????????? | | ?????????????????????????????????????????????????? | | ???????????????????? ???????? ???????????????????? | | ?????????????????????????????#???????????????????? | | ???? ?????????????????#????? ?#??????????????? | | ???? ???????????????????? ! #???????????????? | | ???????????????? ??????? ##??????????????? | | ?????????#??????????? ?? #??????????????? | | ??????????????? ???????? < #??????????????? | | ????????????#??????????? ] #??????????????? | | ????????????????????????? #??????????????? | | ?"??? ???#?#???????? ?? Y ???????????????? | | ???"?????????#???#?#????? ????????????????? | | ????????????????####????# #?????????????????? | | ???????????????????????#?# #??????#??????????? | | ?? ??????????#?????####### #?????????????????? | | #################### ## #??#?#????????????? | | # # ] # @ #???????##????????? | | + # #^ ! #?????????????????? | | # # # #########?????????? | | # # # " ????????? | | # # ? ????????? | | # # ???????? | | # # # ???????? | | # #!! # ???????? | | # #!! #####u #########+###?????????? | | ###### #???# #??? ?????????????????? | | ?????# #??## #?#??????? ???????????? | | #?#??# #???# #??? ?? ?"????????????? | | ####################### ####??????????????????? | | + + "????????????? | | "" # ########+#######? ????????????????? | | "" # #?????? ????#???????????????????? | | "" + #?????? ??#?????????????????????? | | # ##### #??#?? ??????????????????????? | | # #####+####?? ???????????????????????? | | ##+## # #? ??????????????????????? | | ?# # #? #?????????????????????? | | ?# # =! # #?#????#??????????????? | | ## + = =! # [ #?????????????????????? | | ?# ########## #?????#???????????????? | | ## ###### = ##########?????????????????????? | +----------------------------------------------------+ Best States ------------- Heat Dissipation 25 Energy Generation 14 Energy Capacity 250 Matter Stores 300 Matter Capacity 300 Sight Range 16 Robot Scan Range 30 Terrain Scan Range 16 Terrain Scan Density 110 Evasion (%) 63 Offensive Hacking 25 Defensive Hacking 20 Item Schematics ----------------- None Robot Schematics ------------------ None Fabricated ------------ Nothing Alien Tech Used ----------------- None Achievements -------------- None Challenges ------------ None RPGLIKE | -11 -10 -10 -10 -9 -8 -7 --------- Run | Scr Mat Min Exi Min Mat Fac Levels Raised 4 | . . 1 . . 2 1 XP Earned 9570 | 3000 1035 935 200 750 1815 1835 XP Spent 8050 | 2950 . 1400 . . 1600 2100 Upgrades 15 | 8 . 3 . . 2 2 Propulsion Slot 1 | 1 . . . . . . Utility Slot 2 | . . 1 . . 1 . Weapon Slot 1 | 1 . . . . . . Mass Support 1 | . . 1 . . . . Terrain Scan Density 1 | 1 . . . . . . Hack Attack % 5 | 3 . 1 . . . 1 Hack Defense % 4 | 2 . . . . 1 1 Protomatter Created 167 | . 47 . . . 87 33 Integrity Restored 240 | . 141 . . . . 99 Core 240 | . 141 . . . . 99 Protomatter Decayed 87 | . . . . . 87 . Game ------ Seed ExplosiveRocketRouter Manual? 0 Play Time 00:16:20 Cumulative 1052.6 hours Start 2020.05.02 @ 18:12:53 End 2020.05.02 @ 18:40:35 Sessions 1 Manual Loads 0 Difficulty Rogue Special Mode Winter2019/RPGLIKE Game No. 640 Rogue 640 Adventurer 0 Explorer 0 Win Type - Total 18 Types 10/1/4/3/0/0/0 Lore% 89 Gallery% 94 Achievement% 81 Wizard Run 0 Options --------- ASCII 0 Keyboard 0 Movement Mouse Keybinds 0 Fullscreen 2 Font 24/Crisp Map View 76x50 Tactical HUD 1 Map Filters NONE Filters NONE Steam 1 RUN: a9ffa66f-451f-495c-a1c8-9d47945c2778